fUSD/lending_fUSD_20240505
["ID","MTS","AMOUNT","RATE_DAILY","PERIOD"]
[326466025,1714944550127,888.99128441,0.0002509,120]
[326466042,1714944631878,-363.2425254,9.973e-05,2]
[326466043,1714944631890,-1836.77399846,9.973e-05,2]
[326466044,1714944631902,-124.64991095,9.973e-05,2]
[326466045,1714944631911,-546.24344743,9.974e-05,2]
[326466046,1714944631921,-370.50068644,9.974e-05,2]
[326466047,1714944631931,-155.0,9.974e-05,2]
[326466048,1714944631940,-155.0,9.975e-05,2]
[326466049,1714944631950,-363.73124967,9.975e-05,2]
[326466050,1714944631959,-155.0,9.975e-05,2]
[326466051,1714944631969,-155.0,9.975e-05,2]
[326466052,1714944631978,-155.0,9.976e-05,2]
[326466053,1714944631987,-262.62482692,9.977e-05,2]
[326466054,1714944631997,-155.0,9.977e-05,2]
[326466055,1714944632006,-207.05329635,9.978e-05,2]
[326466056,1714944632016,-1049.23658264,9.978e-05,2]
[326466057,1714944632028,-1954.82789039,9.978e-05,2]
[326466058,1714944632037,-56.32071161,9.978e-05,2]
[326466059,1714944632048,-93.67928839,9.978e-05,2]
[326466060,1714944632057,-249.25475512,9.979e-05,2]
[326466061,1714944632101,-285.59275055,9.979e-05,2]
[326466062,1714944632112,-1854.37864987,9.982e-05,2]
[326466063,1714944632124,-2415.99901435,9.982e-05,2]
[326466064,1714944632133,-1083.02475491,9.984e-05,2]
[326466065,1714944632167,-11578.92172133,9.984e-05,2]
[326466066,1714944632178,-1047.42676983,9.984e-05,2]
[326466067,1714944632190,-732.15601401,9.984e-05,2]
[326466068,1714944632201,-1297.02003697,9.984e-05,2]
[326466070,1714944632212,-289.3455407,9.984e-05,2]
[326466072,1714944632223,-3431.40688029,9.984e-05,2]
[326466074,1714944632233,-711.29680652,0.0001,2]
[326466076,1714944632242,-161.93022437,0.00010015,2]
[326466078,1714944632251,-7478.34944882,0.00010145,2]
[326466080,1714944632261,-2248.99689501,0.00010145,2]
[326466093,1714944638016,-207.05329635,9.973e-05,2]
[326466094,1714944638026,-13054.91637081,0.00010145,2]
[326466095,1714944638035,-500.0,0.00010153,2]
[326466096,1714944638044,-365.07742301,0.00010254,2]
[326466097,1714944638054,-250.0,0.00011428,2]
[326466098,1714944638063,-12684.10230605,0.00011539,2]
[326466099,1714944638074,-11215.89769395,0.00011539,2]
[326466100,1714944638083,-165.31,0.00011633,2]
[326466101,1714944638092,-1000.0,0.00011642,2]
[326466102,1714944638101,-200.0,0.00011678,2]
[326466103,1714944638111,-230.0,0.0001169,2]
[326466104,1714944638120,-1000.0,0.00011898,2]
[326466105,1714944638130,-499.99,0.00011898,2]
[326466106,1714944638139,-232.1,0.00012245,2]
[326466107,1714944638148,-1560.96410363,0.00012717,2]
[326466108,1714944638157,-516.6689,0.00012891,2]
[326466109,1714944638167,-163.7681,0.00012891,2]
[326466110,1714944638176,-14952.3709,0.00012891,2]
[326466111,1714944638187,-1876.7957,0.00012899,2]
[326466112,1714944638196,-217.21716458,0.000129,2]
[326466113,1714944638205,-19391.45828905,0.000129,2]
[326466114,1714944638217,-353.03328693,0.000129,2]
[326466115,1714944638258,-284.99799728,0.000129,2]
[326466120,1714944640034,-11000.0,0.000129,2]
[326466121,1714944640185,-2059.34426425,0.000129,2]
[326466122,1714944640195,-157.88757413,0.000129,2]
[326466123,1714944640204,-161.93022436,0.000129,2]
[326466124,1714944640214,-796.75630216,0.000129,2]
[326466125,1714944640223,-3885.8076,0.000129,2]
[326466126,1714944640232,-550.0436718,0.000129,2]
[326466127,1714944640242,-2500.0,0.000129,2]
[326466128,1714944640251,-559.0399575,0.000129,2]
[326466129,1714944640260,-230.50469246,0.000129,2]
[326466130,1714944640269,-1443.15373314,0.000129,2]
[326466131,1714944640279,-4459.2223781,0.00012989,2]
[326466132,1714944640288,-9671.3200571,0.00012989,2]
[326466133,1714944640297,-4347.8463382,0.00012991,2]
[326466134,1714944640306,-4203.3966295,0.00012991,2]
[326466135,1714944640333,-406.24944498,0.00012991,2]
[326466147,1714944642894,-360.93263294,0.00012244,2]
[326466148,1714944643024,-155.12016368,0.00012244,2]
[326466149,1714944643034,-4820.11766692,0.00012991,2]
[326466150,1714944643044,-632.33272236,0.00012998,2]
[326466151,1714944643056,-1046.21197199,0.00012998,2]
[326466152,1714944643067,-162.26289943,0.00012998,2]
[326466153,1714944643077,-782.13638794,0.00012998,2]
[326466154,1714944643086,-4417.68693745,0.00012998,2]
[326466155,1714944643096,-538.51236108,0.00012998,2]
[326466156,1714944643105,-167.58743393,0.00012998,2]
[326466157,1714944643116,-882.62690752,0.00012999,2]
[326466158,1714944643127,-731.4392052,0.00012999,3]
[326466159,1714944643137,-26070.85291651,0.00013,2]
[326466160,1714944643149,-24373.58894908,0.00013,2]
[326466161,1714944643161,-2508.89798662,0.00013,2]
[326466162,1714944643189,-1558.35,0.00013,2]
[326466163,1714944643200,-1300.50255762,0.00013,2]
[326466164,1714944643212,-301.60400004,0.00013,2]
[326466165,1714944643226,-3219.39896456,0.00013,2]
[326466166,1714944643267,-453.0,0.00013,2]
[326466167,1714944645964,-546.24344743,0.00012998,2]
[326466168,1714944645974,-1246.19492949,0.00012998,2]
[326466169,1714944645983,-155.0,0.00012999,2]
[326466170,1714944645992,-12797.35169223,0.00013,2]
[326466171,1714944689101,483.94720338,0.0002509,120]
[326466172,1714944723962,516.05279662,0.0002509,120]
[326466173,1714944869519,150.0,6.94e-05,2]
[326466174,1714944869540,150.0,6.94e-05,2]
[326466175,1714944869560,150.0,6.94e-05,2]
[326466176,1714944869581,150.0,6.94e-05,2]
[326466177,1714944869601,150.0,6.94e-05,2]
[326466178,1714944869621,268.15001974,6.94e-05,2]
[326466179,1714944869644,668.88370056,6.94e-05,2]
[326466181,1714944921612,423.1768076,6.246e-05,2]
[326466182,1714944924589,288.78428992,6.94e-05,2]
[326466183,1714944925009,7507.62000178,6.94e-05,2]
[326466184,1714944925198,37810.4406274,6.94e-05,2]
[326466185,1714944929281,1075.12362308,6.94e-05,2]
[326466186,1714944935673,423.1768076,6.246e-05,2]
[326466187,1714944940971,3537.82082295,6.94e-05,2]
[326466188,1714944942564,288.78428992,6.94e-05,2]
[326466189,1714944943205,19699.23956688,6.94e-05,2]
[326466190,1714944946768,1075.12362308,6.94e-05,2]
[326466191,1714944953610,461.96058893,6.246e-05,2]
[326466192,1714944959257,19699.23956688,6.94e-05,2]
[326466193,1714944964577,288.78428992,6.246e-05,2]
[326466194,1714944966648,560.13940762,6.246e-05,2]
[326466195,1714944979186,19699.23956688,6.246e-05,2]
[326466196,1714944982571,288.78428992,6.246e-05,2]
[326466197,1714944984649,560.13940762,6.246e-05,2]
[326466198,1714944997212,19699.23956688,6.246e-05,2]
[326466199,1714945004688,560.13940762,6.246e-05,2]
[326466200,1714945006625,288.78428992,6.246e-05,2]
[326466201,1714945015207,19699.23956688,6.246e-05,2]
[326466202,1714945028581,288.78428992,6.246e-05,2]
[326466203,1714945030721,560.13940762,6.246e-05,2]
[326466204,1714945033614,19699.23956688,6.246e-05,2]
[326466205,1714945046594,288.78428992,6.246e-05,2]
[326466206,1714945052653,560.13940762,6.246e-05,2]
[326466207,1714945055185,19699.23956688,6.246e-05,2]
[326466208,1714945055768,-155.0,9.991e-05,2]
[326466209,1714945055793,-3004.06447303,9.991e-05,2]
[326466210,1714945057172,155.0,9.99e-05,2]
[326466211,1714945057242,305.72421467,9.99e-05,2]
[326466212,1714945063542,155.0,9.991e-05,2]
[326466213,1714945066205,363.73124967,9.991e-05,2]
[326466214,1714945066388,299.83632374,9.991e-05,2]
[326466215,1714945068639,288.78428992,6.246e-05,2]
[326466216,1714945070662,560.13940762,6.246e-05,2]
[326466217,1714945071209,10212.72004135,6.246e-05,2]
[326466218,1714945071237,9486.51952553,6.246e-05,2]
[326466219,1714945087197,19699.23956688,6.246e-05,2]
[326466220,1714945088588,288.78428992,6.246e-05,2]
[326466222,1714945109129,-536.64855684,9.988e-05,2]
[326466223,1714945109153,-534.84750567,9.988e-05,2]
[326466224,1714945109179,-207.05329635,9.989e-05,2]
[326466225,1714945109207,-155.0,9.989e-05,2]
[326466226,1714945109233,-320.73349152,9.99e-05,2]
[326466227,1714945109258,-546.24344743,9.99e-05,2]
[326466228,1714945109281,-155.0,9.99e-05,2]
[326466229,1714945109306,-262.62482692,9.991e-05,2]
[326466230,1714945109329,-4270.37766422,9.991e-05,2]
[326466231,1714945109351,-2324.66643481,9.991e-05,2]
[326466232,1714945109374,-560.13940762,9.991e-05,2]
[326466233,1714945109397,-5626.66536862,9.991e-05,2]
[326466234,1714945144799,-2560.78189754,9.988e-05,2]
[326466235,1714945195169,560.13940762,9.988e-05,2]
[326466236,1714945198516,2000.64248992,9.988e-05,2]
[326466237,1714945198538,2560.78189754,9.988e-05,2]
[326466238,1714945198561,2560.78189754,9.988e-05,2]
[326466239,1714945198584,2560.78189754,9.988e-05,2]
[326466240,1714945198606,2560.78189754,9.988e-05,2]
[326466241,1714945198628,2560.78189754,9.988e-05,2]
[326466242,1714945198650,2560.78189754,9.988e-05,2]
[326466244,1714945421653,-262.62482692,9.984e-05,2]
[326466245,1714945421687,-363.73124967,9.985e-05,2]
[326466246,1714945421720,-155.0,9.986e-05,2]
[326466247,1714945421754,-155.0,9.987e-05,2]
[326466248,1714945421778,-262.62482692,9.987e-05,2]
[326466249,1714945421802,-363.73124967,9.987e-05,2]
[326466250,1714945421814,-155.0,9.987e-05,2]
[326466251,1714945421830,-155.0,9.987e-05,2]
[326466252,1714945421842,-1127.28784682,9.987e-05,2]
[326466253,1714945502397,-534.84750567,9.983e-05,2]
[326466254,1714945502429,-155.0,9.983e-05,2]
[326466255,1714945502461,-370.50068644,9.984e-05,2]
[326466256,1714945502492,-54.63718097,9.984e-05,2]
[326466257,1714945503248,-534.84750567,9.984e-05,2]
[326466258,1714945503261,-155.0,9.984e-05,2]
[326466259,1714945503283,-370.50068644,9.984e-05,2]
[326466260,1714945503310,-1209.68106173,9.984e-05,2]
[326466261,1714945503319,-536.64855684,9.985e-05,2]
[326466262,1714945503329,-578.33681624,9.986e-05,2]
[326466265,1714945586968,-707.48452441,9.972e-05,2]
[326466266,1714945587003,-150.0,9.973e-05,2]
[326466267,1714945587033,-221.91760372,9.983e-05,2]
[326466268,1714945587045,-707.48452441,9.983e-05,2]
[326466269,1714945587056,-150.0,9.983e-05,2]
[326466270,1714945587069,-1283.71121933,9.983e-05,2]
[326466271,1714945587077,-1079.40212813,9.984e-05,2]
[326466275,1714945656007,-187.35874497,9.984e-05,2]
[326466276,1714945656044,-288.78428992,9.984e-05,2]
[326466277,1714945656078,-560.13940762,9.984e-05,2]
[326466278,1714945656098,-187.35874497,9.984e-05,2]
[326466279,1714945656114,-288.78428992,9.984e-05,2]
[326466280,1714945656134,-560.13940762,9.984e-05,2]
[326466281,1714945656153,-127.43511498,9.984e-05,2]
[326466321,1714945832206,-155.0,9.976e-05,2]
[326466322,1714945832215,-222.14468412,9.977e-05,2]
[326466323,1714945832226,-486.93,9.977e-05,2]
[326466324,1714945832238,-1615.59175069,9.977e-05,2]
[326466325,1714945832247,-363.73124967,9.977e-05,2]
[326466326,1714945832256,-155.0,9.978e-05,2]
[326466327,1714945832265,-262.62482692,9.978e-05,2]
[326466328,1714945832275,-229.59698858,9.978e-05,2]
[326466329,1714945832284,-3004.06447303,9.979e-05,2]
[326466330,1714945832293,-697.82057701,9.981e-05,2]
[326466331,1714945832304,-1600.23206988,9.982e-05,2]
[326466332,1714945832313,-150.0,9.983e-05,2]
[326466333,1714945832322,-18535.52200939,9.984e-05,2]
[326466334,1714945832331,-560.13940762,9.984e-05,2]
[326466335,1714945832341,-164.87123951,9.984e-05,2]
[326466336,1714945832350,-237.92639815,0.0001,2]
[326466337,1714945832359,-204.24588455,0.0001,2]
[326466338,1714945832369,-711.29680652,0.0001,2]
[326466339,1714945832379,-155.0,0.00010093,2]
[326466341,1714945832389,-208.17791052,0.00010095,2]
[326466343,1714945832398,-242.70108766,0.000101,2]
[326466345,1714945832407,-534.84750567,0.00010976,2]
[326466347,1714945832417,-210.0,0.00010981,2]
[326466349,1714945832427,-6653.4796109,0.00011,2]
[326466351,1714945832436,-1000.0,0.00011258,2]
[326466353,1714945832445,-23900.0,0.00011307,2]
[326466355,1714945832454,-200.0,0.00011327,2]
[326466357,1714945832463,-250.0,0.00011449,2]
[326466359,1714945832473,-160.51,0.00011484,2]
[326466362,1714945832481,-499.99,0.00011484,2]
[326466365,1714945832491,-185.68,0.0001152,2]
[326466368,1714945832499,-190.0,0.00012079,2]
[326466371,1714945832508,-1300.0,0.000124,4]
[326466374,1714945832518,-2600.0,0.000125,4]
[326466377,1714945832527,-3900.0,0.000126,4]
[326466380,1714945832536,-1000.0,0.00012666,2]
[326466383,1714945832545,-5200.0,0.000127,4]
[326466385,1714945832554,-1560.96410363,0.00012775,2]
[326466388,1714945832563,-6500.0,0.000128,4]
[326466390,1714945832572,-308.76784163,0.0001281,2]
[326466393,1714945832581,-10787.51800129,0.00012888,2]
[326466396,1714945832592,-281.63428196,0.00012888,2]
[326466400,1714945832747,-7.34463303,0.00012888,2]
[326466401,1714945832759,-8279.40458372,0.00012888,2]
[326466402,1714945832769,-1000.0,0.00012891,2]
[326466403,1714945832778,-1000.0,0.000129,2]
[326466404,1714945832787,-157.88757413,0.000129,2]
[326466405,1714945832797,-1997.0729,0.000129,2]
[326466406,1714945832806,-5241.63527863,0.000129,2]
[326466407,1714945832920,-1875.10744736,0.000129,2]
[326466408,1714945832931,-16003.44299999,0.000129,2]
[326466409,1714945832943,-1713.30000046,0.000129,2]
[326466422,1714945838443,-229.59698857,9.979e-05,2]
[326466424,1714945838452,-1343.81856143,0.000129,2]
[326466456,1714945840359,-229.59698857,9.979e-05,2]
[326466458,1714945840368,-370.40301143,0.000129,2]
[326466460,1714945840380,-1801.45940999,0.000129,2]
[326466462,1714945840391,-1177.0000008,0.000129,2]
[326466464,1714945840401,-479.45729276,0.000129,2]
[326466466,1714945840413,-325.80701495,0.000129,2]
[326466467,1714945840422,-1300.0,0.000129,4]
[326466469,1714945840431,-1268.64621967,0.000129,2]
[326466470,1714945840442,-450.36094849,0.000129,2]
[326466472,1714945840452,-314.8333653,0.000129,2]
[326466474,1714945840463,-230.02003088,0.000129,2]
[326466477,1714945840476,-142.67327412,0.000129,2]
[326466479,1714945840486,-185.68,0.00012961,2]
[326466481,1714945840496,-281.34418464,0.00012986,2]
[326466483,1714945840505,-0.30254124,0.00012986,2]
[326466488,1714945840548,-200.20628377,0.00012986,2]
[326466490,1714945840557,-274.61893776,0.00012986,2]
[326466492,1714945840567,-155.0,0.00012986,2]
[326466494,1714945840576,-369.83103608,0.00012986,2]
[326466496,1714945840586,-1403.24133919,0.00012986,2]
[326466498,1714945840596,-281.02464391,0.00012986,2]
[326466500,1714945840605,-1262.53141957,0.00012986,2]
[326466502,1714945840615,-155.82270179,0.00012986,2]
[326466504,1714945840624,-630.95571505,0.00012986,2]
[326466506,1714945840634,-950.01829118,0.00012986,2]
[326466508,1714945840644,-599.60887536,0.00012986,2]
[326466510,1714945840653,-536.64855684,0.00012987,2]
[326466512,1714945840663,-324.8475008,0.00012988,2]
[326466514,1714945840672,-4032.8355476,0.00012988,2]
[326466516,1714945840682,-2831.1110478,0.00012988,2]
[326466518,1714945840691,-51939.7184484,0.00012988,2]
[326466521,1714945840700,-1783.4851074,0.00012988,2]
[326466522,1714945840711,-384.4897673,0.00012991,2]
[326466523,1714945840720,-4773.2674491,0.00012991,2]
[326466524,1714945840729,-3433.4160452,0.00012991,2]
[326466525,1714945840738,-62766.9454277,0.00012991,2]
[326466526,1714945840748,-2155.2660614,0.00012991,2]
[326466527,1714945840757,-383.40649015,0.00012997,2]
[326466528,1714945840766,-170.82312602,0.00012997,2]
[326466529,1714945840775,-979.39041089,0.00012998,2]
[326466530,1714945840785,-572.20226711,0.00012998,7]
[326466531,1714945840794,-155.0,0.00012998,2]
[326466532,1714945840803,-1268.25303457,0.00012998,2]
[326466533,1714945840813,-3075.87418959,0.00012998,2]
[326466534,1714945840822,-246.85402242,0.00012998,2]
[326466536,1714945840831,-3084.72177879,0.00012998,2]
[326466537,1714945840841,-267.83236721,0.00012998,2]
[326466538,1714945840850,-193.00424043,0.00012998,2]
[326466539,1714945840859,-272.11746046,0.00012998,2]
[326466541,1714945840869,-295.61070159,0.00012998,2]
[326466543,1714945840878,-265.78183132,0.00012998,2]
[326466544,1714945840887,-3577.52992571,0.00012998,2]
[326466545,1714945840896,-514.6912655,0.00012998,2]
[326466546,1714945840906,-158.81230692,0.00012999,2]
[326466547,1714945840915,-171.6320028,0.00012999,2]
[326466548,1714945841168,-207.58542229,0.00012999,2]
[326466549,1714945841192,-5856.07938099,0.00012999,2]
[326466550,1714945841202,-1005.23426011,0.00012999,2]
[326466551,1714945841211,-29674.97525025,0.00013,2]
[326466552,1714945841286,-4395.75536144,0.00013,2]
[326466553,1714945841297,-977.41381075,0.00013,2]
[326466554,1714945841307,-600.0,0.00013,2]
[326466557,1714945843680,-17716.42703437,0.00013,2]
[326466558,1714945843693,-361679.75873278,0.00013,2]
[326466559,1714945843757,-2068.35907027,0.00013,2]
[326466560,1714945843768,-1050.0,0.00013,2]
[326466561,1714945843860,-623.46,0.00013,2]
[326466562,1714945843962,-446.4417463,0.00013,2]
[326466563,1714945843975,-743831.83609306,0.00013,2]
[326466564,1714945843987,-1967.47602978,0.00013,2]
[326466572,1714945846792,-586.17370562,9.984e-05,2]
[326466573,1714945846801,-675.73507438,9.984e-05,2]
[326466614,1714947032821,-4735.28114911,9.892e-05,2]
[326466615,1714947032830,-262.62482692,9.893e-05,2]
[326466616,1714947032840,-2324.66643481,9.893e-05,2]
[326466617,1714947032850,-157.46477179,9.893e-05,2]
[326466618,1714947032860,-539.50801698,9.894e-05,2]
[326466619,1714947032869,-155.0,9.895e-05,2]
[326466620,1714947032877,-177.59203008,9.896e-05,2]
[326466621,1714947032886,-155.0,9.896e-05,2]
[326466622,1714947032895,-3004.06447303,9.896e-05,2]
[326466623,1714947032904,-161.73293461,9.897e-05,2]
[326466624,1714947032913,-363.73124967,9.897e-05,2]
[326466625,1714947032926,-155.0,9.897e-05,2]
[326466626,1714947032935,-534.84750567,9.897e-05,2]
[326466627,1714947032944,-155.0,9.898e-05,2]
[326466628,1714947032953,-872.70795906,9.9e-05,2]
[326466629,1714947032963,-533.77884656,9.916e-05,2]
[326466630,1714947032972,-621.01261871,9.984e-05,2]
[326466631,1714947032984,-814.81167033,9.984e-05,2]
[326466632,1714947032995,-885.18832967,9.984e-05,2]
[326466633,1714947033016,-1268.76382903,9.984e-05,2]
[326466634,1714947033027,-5353.66784308,9.984e-05,2]
[326466635,1714947033037,-14328.14875578,9.984e-05,2]
[326466636,1714947033047,-700.08093092,9.984e-05,2]
[326466637,1714947033059,-347.96815075,9.984e-05,2]
[326466639,1714947033070,-500.77266238,9.984e-05,2]
[326466645,1714947033111,-4044.72301169,9.984e-05,2]
[326466647,1714947033123,-272.27794185,9.984e-05,2]
[326466650,1714947033132,-178.29,0.0001,2]
[326466653,1714947033141,-711.29680652,0.0001,2]
[326466655,1714947033150,-204.24588455,0.00011629,2]
[326466656,1714947033160,-155.0,0.0001163,2]
[326466657,1714947033169,-499.99,0.00011631,2]
[326466658,1714947033178,-4246.39936709,0.00011634,2]
[326466659,1714947033201,-6283.7424,0.00011634,2]
[326466665,1714947038358,-160.51,0.00011304,2]
[326466666,1714947038368,-10350.13443999,0.00011634,2]
[326466667,1714947038419,-3019.72379292,0.00011634,2]
[326466668,1714947038432,-175.49228311,0.00011634,2]
[326466669,1714947038552,-5.11771689,0.00011634,2]
[326466670,1714947038562,-279.05,0.00011634,2]
[326466671,1714947038572,-106.0434959,0.00011639,2]
[326466672,1714947038599,-143.9565041,0.00011639,2]
[326466673,1714947038610,-184.0,0.00011726,2]
[326466674,1714947038620,-299.99,0.000124,2]
[326466675,1714947038630,-600.0,0.000124,4]
[326466676,1714947038640,-770.64968752,0.000125,4]
[326466677,1714947038654,-529.35031248,0.000125,4]
[326466679,1714947038664,-1285.21819752,0.000126,4]
[326466680,1714947038684,-714.78180248,0.000126,4]
[326466681,1714947038693,-2905.8173,0.00012698,2]
[326466682,1714947038704,-210.2551,0.00012698,2]
[326466683,1714947038714,-294.72257961,0.000127,4]
[326466684,1714947038727,-400.0,0.000127,4]
[326466685,1714947038738,-2005.27742039,0.000127,4]
[326466686,1714947038749,-620.251917,0.00012791,2]
[326466687,1714947038758,-1440.33189456,0.00012798,2]
[326466688,1714947038774,-707.15,0.00012798,2]
[326466702,1714947040610,-397.00719756,0.00012798,2]
[326466703,1714947040622,-3151.59999991,0.00012798,2]
[326466704,1714947040634,-509.999985,0.00012798,2]
[326466705,1714947040740,-2014.73842297,0.00012798,2]
[326466706,1714947040750,-3504.8607,0.00012798,2]
[326466707,1714947040759,-24995.43845576,0.00012798,2]
[326466708,1714947040772,-260.59,0.00012798,2]
[326466709,1714947040784,-4783.57051173,0.00012798,2]
[326466710,1714947040795,-1132.6290311,0.00012798,2]
[326466711,1714947040807,-3579.43116206,0.00012798,2]
[326466712,1714947040818,-2011.22327998,0.00012798,2]
[326466713,1714947040830,-3573.359008,0.00012798,2]
[326466714,1714947040842,-3170.32060532,0.00012798,2]
[326466715,1714947040853,-2801.81458229,0.00012798,2]
[326466716,1714947040865,-1539.78329624,0.00012798,2]
[326466717,1714947040876,-1149.60838118,0.00012798,2]
[326466718,1714947040887,-1919.06086,0.00012798,2]
[326466719,1714947040915,-1819.99999776,0.00012798,2]
[326466720,1714947040938,-250.5,0.00012798,2]
[326466721,1714947040950,-1040.79092795,0.00012798,2]
[326466722,1714947040962,-19182.33199861,0.00012798,2]
[326466723,1714947040973,-555.29,0.00012798,2]
[326466724,1714947040984,-765.18986902,0.00012798,2]
[326466725,1714947040996,-290.82,0.00012798,2]
[326466726,1714947041025,-290.77689149,0.00012798,2]
[326466727,1714947041036,-354.72788086,0.00012798,2]
[326466728,1714947041050,-348.49967892,0.00012798,2]
[326466729,1714947041061,-1902.33213648,0.00012798,2]
[326466730,1714947041073,-8102.55812948,0.00012798,2]
[326466745,1714947043523,-1287.03221577,0.00012798,2]
[326466746,1714947043534,-934.00771423,0.00012798,2]
[326466747,1714947043545,-865.00999,0.00012798,2]
[326466748,1714947043569,-383.69250006,0.00012798,2]
[326466749,1714947043581,-442.820748,0.00012798,2]
[326466750,1714947043592,-2249.96124771,0.00012798,2]
[326466751,1714947043602,-39101.2625,0.00012798,2]
[326466752,1714947043611,-100000.0,0.00012798,2]
[326466753,1714947043620,-500.0,0.00012798,2]
[326466754,1714947043629,-973.1814638,0.00012799,2]
[326466755,1714947043639,-314.83336526,0.00012799,2]
[326466756,1714947043648,-3300.0,0.000128,4]
[326466757,1714947043657,-973.18146379,0.00012824,2]
[326466758,1714947043666,-973.18146379,0.0001285,2]
[326466759,1714947043676,-251.88176506,0.00012868,2]
[326466760,1714947043685,-973.18146379,0.00012875,2]
[326466761,1714947043694,-2070.77455415,0.00012886,2]
[326466762,1714947043704,-1000.0,0.00012888,2]
[326466763,1714947043713,-185.75071284,0.0001289,2]
[326466764,1714947043723,-500.0,0.00012896,2]
[326466765,1714947043732,-3697.29672041,0.00012898,2]
[326466766,1714947043741,-1139.20735303,0.00012898,2]
[326466767,1714947043751,-642.127433,0.00012898,2]
[326466768,1714947043760,-360.01550888,0.00012898,2]
[326466769,1714947043771,-1325.97003301,0.00012898,2]
[326466770,1714947043780,-216.27051939,0.00012898,2]
[326466771,1714947043790,-245000.0,0.00012898,2]
[326466772,1714947043800,-5551.89418728,0.00012899,2]
[326466773,1714947043809,-155.08590433,0.00012899,2]
[326466774,1714947043818,-1996.81788928,0.00012899,2]
[326466775,1714947043828,-196.52425206,0.000129,2]
[326466776,1714947043837,-399.72158659,0.000129,2]
[326466777,1714947043847,-155.0,0.000129,2]
[326466778,1714947043856,-366.21185913,0.000129,2]
[326466779,1714947043865,-390.51265116,0.000129,2]
[326466780,1714947043874,-123778.88822037,0.000129,2]
[326466781,1714947043884,-163.22611039,0.000129,2]
[326466782,1714947043893,-166.58519665,0.000129,2]
[326466783,1714947043902,-30584.62136909,0.000129,2]
[326466784,1714947043912,-973.18146379,0.000129,2]
[326466785,1714947043921,-153.66979498,0.000129,2]
[326466786,1714947043931,-600.0,0.000129,4]
[326466787,1714947043940,-248.46220332,0.000129,2]
[326466788,1714947043950,-199.86231072,0.000129,2]
[326466789,1714947043959,-4956.7782003,0.00012989,2]
[326466790,1714947043968,-47067.6823173,0.00012989,2]
[326466791,1714947043978,-2295.0305241,0.00012989,2]
[326466792,1714947043987,-4071.7438356,0.00012989,2]
[326466794,1714947043996,-19769.5672624,0.00012989,2]
[326466795,1714947044006,-761.1756746,0.00012989,2]
[326466796,1714947044016,-185.75071284,0.0001299,2]
[326466797,1714947044026,-4740.5595076,0.00012991,2]
[326466798,1714947044035,-45110.7464217,0.00012991,2]
[326466799,1714947044044,-2199.6099002,0.00012991,2]
[326466800,1714947044053,-3902.452694,0.00012991,2]
[326466801,1714947044062,-18947.6067597,0.00012991,2]
[326466802,1714947044072,-729.5282272,0.00012991,2]
[326466803,1714947044081,-3083.85801135,0.00012998,2]
[326466804,1714947044092,-155.0,0.00012998,2]
[326466805,1714947044101,-782.13638794,0.00012998,2]
[326466806,1714947044111,-684.85937217,0.00012998,2]
[326466807,1714947044120,-167.53697836,0.00012998,2]
[326466808,1714947044130,-3692.10903719,0.00012998,2]
[326466809,1714947044139,-5856.07938099,0.00012999,2]
[326466810,1714947044149,-75290.81818301,0.00013,2]
[326466811,1714947044160,-578.77647524,0.00013,2]
[326466812,1714947044183,-1250.0,0.00013,2]
[326466813,1714947044194,-400.0,0.00013,2]
[326466814,1714947044445,-337.65,0.00013,2]
[326466815,1714947044460,-336.95839996,0.00013,2]
[326466816,1714947044474,-3057.42688,0.00013,2]
[326466817,1714947044494,-1468.79524653,0.00013,2]
[326466818,1714947044506,-757.45058583,0.00013,2]
[326466819,1714947044518,-409.79455518,0.00013,2]
[326466820,1714947044529,-1966.65077062,0.00013,2]
[326466821,1714947044553,-363.73124967,0.00012797,2]
[326466822,1714947044564,-6336.76875033,0.00013,2]
[326466823,1714947044575,-41223.20385377,0.00013,2]
[326466824,1714947044586,-1698.3897677,0.00013,2]
[326466825,1714947044600,-259.81768672,0.00013,2]
[326466826,1714947044613,-935.21484251,0.00013,2]
[326466827,1714947044625,-1401.6000012,0.00013,2]
[326466828,1714947044641,-7855.50752835,0.00013,2]
[326466829,1714947044656,-472.33624671,0.00013,2]
[326466830,1714947044668,-922368.14148653,0.00013,2]
[326466835,1714947046696,-310.00217,0.00012797,2]
[326466836,1714947046732,-409.20495899,0.00012797,2]
[326466837,1714947046744,-291.2772942,0.00012797,2]